bitfinex-derivatives/quotes_SOLF0:USTF0_20220108
["timestamp","ask_amount","ask_price","bid_price","bid_amount"]
[1641617680859,4.9849386,141.46,141.4,0.8037439]
[1641617681359,8.9849386,141.46,141.4,0.8037439]
[1641617681560,12.1769386,141.46,141.4,0.8037439]
[1641617681760,4.9849386,141.45,141.38,0.8037439]
[1641617685761,95.10259,141.48,141.38,0.8037439]
[1641617685762,4.9849386,141.46,141.38,0.8037439]
[1641617686362,4.9849386,141.45,141.38,0.8037439]
[1641617686562,10.9739386,141.45,141.38,0.8037439]
[1641617687162,5.989,141.45,141.38,0.8037439]
[1641617687363,5.989,141.45,141.36,0.8037439]
[1641617687562,4.9849386,141.46,141.36,0.8037439]
[1641617687966,4.9849386,141.45,141.38,27.66479]
[1641617688366,4.9849386,141.45,141.39,0.8037439]
[1641617688765,4.9849386,141.44,141.39,0.8037439]
[1641617689668,4.9849386,141.45,141.39,0.8037439]
[1641617690668,4.9849386,141.45,141.38,27.66479]
[1641617690966,4.9849386,141.45,141.39,0.8037439]
[1641617691966,4.9849386,141.44,141.39,0.8037439]
[1641617692769,4.9849386,141.44,141.4,4.0]
[1641617693069,4.9849386,141.44,141.4,4.849]
[1641617693469,4.9849386,141.48,141.4,4.849]
[1641617693669,4.9849386,141.48,141.41,0.8037439]
[1641617694068,4.9849386,141.48,141.41,4.8037439]
[1641617694268,4.9849386,141.48,141.41,0.8037439]
[1641617694467,4.9849386,141.48,141.4,8.849]
[1641617694468,4.9849386,141.48,141.42,0.8037439]
[1641617694668,4.9849386,141.48,141.43,27.66479]
[1641617695369,4.9849386,141.48,141.44,0.8037439]
[1641617698671,4.9849386,141.47,141.44,0.8037439]
[1641617700272,4.9849386,141.46,141.44,0.8037439]
[1641617703275,4.9849386,141.45,141.44,0.8037439]
[1641617704379,4.9849386,141.45,141.41,0.8037439]
[1641617704777,4.9849386,141.45,141.44,0.8037439]
[1641617704979,82.6951319,141.47,141.44,0.8037439]
[1641617705279,82.6951319,141.47,141.4,0.8037439]
[1641617707980,86.6951319,141.47,141.4,5.7886825]
[1641617708179,92.5451319,141.47,141.4,5.7886825]
[1641617708381,4.0,141.45,141.41,0.8037439]
[1641617708980,27.66479,141.42,141.37,14.9989319]
[1641617709180,4.0,141.39,141.37,14.9989319]
[1641617709380,4.0,141.38,141.35,8.05081288]
[1641617709583,6.627,141.39,141.35,8.05081288]
[1641617710183,6.627,141.39,141.36,0.80342837]
[1641617710584,10.627,141.39,141.36,0.80342837]
[1641617710883,38.29179,141.39,141.36,0.80342837]
[1641617711083,4.0,141.37,141.31,0.80342837]
[1641617711285,7.2362535,141.38,141.27,27.66479]
[1641617711484,4.0,141.36,141.26,70.7992]
[1641617711684,4.0,141.35,141.25,39.9348812]
[1641617712189,4.0,141.34,141.25,39.9348812]
[1641617712390,4.0,141.33,141.25,39.9348812]
[1641617712589,9.605,141.33,141.26,0.80373003]
[1641617712990,27.66479,141.3,141.24,0.80373003]
[1641617713190,33.14679,141.3,141.24,0.80373003]
[1641617713390,584.0,141.28,141.24,0.80373003]
[1641617713590,4.0,141.26,141.2,8.02184987]
[1641617713791,10.625,141.26,141.2,8.02184987]
[1641617714191,6.625,141.26,141.2,8.02184987]
[1641617714390,590.625,141.26,141.2,8.02184987]
[1641617714790,590.625,141.26,141.21,0.80412093]
[1641617714990,27.66479,141.24,141.21,0.80412093]
[1641617715690,27.66479,141.24,141.17,0.80412093]
[1641617718492,584.0,141.23,141.17,0.80412093]
[1641617718692,584.0,141.23,141.14,0.80412093]
[1641617718894,584.0,141.23,141.15,4.0]
[1641617719092,584.0,141.23,141.15,31.66479]
[1641617719492,611.66479,141.24,141.15,31.66479]
[1641617719691,611.66479,141.24,141.16,4.80412093]
[1641617719892,611.66479,141.24,141.16,0.80412093]
[1641617720293,611.66479,141.24,141.17,4.0]
[1641617720493,611.66479,141.24,141.18,4.0]
[1641617720693,611.66479,141.24,141.18,10.49612093]
[1641617720898,584.0,141.24,141.2,4.0]
[1641617721095,584.0,141.24,141.2,31.66479]
[1641617721895,584.0,141.24,141.21,0.80412093]
[1641617725499,576.0,141.24,141.21,0.80412093]
[1641617726199,576.0,141.24,141.2,0.80412093]
[1641617728401,576.0,141.24,141.18,0.80412093]
[1641617729802,576.0,141.24,141.17,0.80412093]
[1641617737407,576.0,141.24,141.18,1.75322808]
[1641617738108,576.0,141.24,141.19,0.80412093]
[1641617739309,576.0,141.24,141.17,0.80412093]
[1641617740711,576.0,141.24,141.18,16.74776288]
[1641617741312,576.0,141.24,141.19,15.7885533]
[1641617741711,576.0,141.24,141.2,0.80412093]
[1641617742411,576.0,141.24,141.2,17.55188381]
[1641617742711,576.0,141.24,141.21,0.80412093]
[1641617743110,576.0,141.24,141.22,1.76333051]
[1641617743713,576.0,141.24,141.23,0.80412093]
[1641617744816,576.0,141.24,141.23,2.56745144]
[1641617747618,576.0,141.24,141.17,56.75274972]
[1641617747619,576.0,141.24,141.17,52.75274972]
[1641617748317,576.0,141.24,141.16,32.89779]
[1641617748518,576.0,141.22,141.16,32.89779]
[1641617748717,576.0,141.22,141.16,27.66479]
[1641617749118,576.0,141.22,141.17,0.80424524]
[1641617749518,576.0,141.21,141.17,0.80424524]
[1641617749719,581.478,141.21,141.17,0.80424524]
[1641617750021,581.478,141.21,141.15,0.80424524]
[1641617751619,27.66479,141.19,141.15,0.80424524]
[1641617752020,27.66479,141.19,141.12,0.80424524]
[1641617752821,27.66479,141.19,141.11,0.80424524]
[1641617753420,576.0,141.15,141.11,0.80424524]
[1641617753621,581.286,141.15,141.11,0.80424524]
[1641617754521,576.0,141.14,141.11,0.80424524]
[1641617757725,583.021,141.14,141.11,0.80424524]
[1641617759525,576.0,141.14,141.11,0.80424524]
[1641617761028,576.0,141.14,141.11,4.80424524]
[1641617761434,576.0,141.13,141.11,4.80424524]
[1641617761628,576.0,141.13,141.12,0.80424524]
[1641617762429,645.8307,141.18,141.12,0.80424524]
[1641617764132,4.0,141.15,141.12,4.524e-05]
[1641617764330,27.66479,141.13,141.12,4.524e-05]
[1641617764929,27.66479,141.13,141.06,39.9348812]
[1641617765329,27.66479,141.13,141.07,0.80469128]
[1641617766232,27.66479,141.13,141.06,0.80469128]
[1641617769136,576.0,141.08,141.06,0.80469128]
[1641617769336,581.374,141.08,141.06,0.80469128]
[1641617769739,581.374,141.08,141.06,5.79452551]
[1641617769940,581.374,141.08,141.06,4.98983423]
[1641617770641,581.374,141.08,141.07,0.80469128]
[1641617771243,576.0,141.08,141.07,0.80469128]
[1641617771641,576.0,141.08,141.05,4.98983423]
[1641617771642,576.0,141.08,141.06,0.80469128]
[1641617772544,576.0,141.07,141.06,0.80469128]
[1641617773344,576.0,141.07,141.06,5.79452551]
[1641617774447,603.66479,141.09,141.06,5.79452551]
[1641617775149,603.66479,141.09,141.07,0.80469128]
[1641617775648,603.66479,141.09,141.08,4.98983423]
[1641617776348,603.66479,141.09,141.07,5.79452551]
[1641617776548,603.66479,141.09,141.08,0.80469128]
[1641617777150,603.66479,141.09,141.08,5.79452551]
[1641617781758,603.66479,141.09,141.08,2.551e-05]
[1641617781957,603.66479,141.09,141.05,15.0036665]
[1641617782257,603.66479,141.09,141.03,15.0036665]
[1641617783259,603.66479,141.09,141.04,0.80491044]
[1641617785261,603.66479,141.09,141.04,4.80491044]
[1641617785663,603.66479,141.09,141.05,0.80491044]
[1641617786063,603.66479,141.09,141.04,0.80491044]
[1641617786263,595.61630481,141.09,141.04,0.80491044]
[1641617787971,595.61630481,141.09,141.05,1.75989076]
[1641617788468,595.61630481,141.09,141.06,0.80491044]
[1641617789468,595.61630481,141.09,141.07,1.75989076]
[1641617789869,576.0,141.09,141.07,1.75989076]
[1641617790270,650.06886171,141.12,141.08,0.80491044]
[1641617790471,27.66479,141.1,141.08,0.80491044]
[1641617791572,27.66479,141.1,141.06,0.80491044]
[1641617792373,27.66479,141.1,141.07,1.76168231]
[1641617792975,27.66479,141.1,141.08,0.80491044]
[1641617793675,31.66479,141.1,141.09,1.76168231]
[1641617793877,27.66479,141.1,141.08,0.80491044]
[1641617794481,603.66479,141.1,141.08,0.80491044]
[1641617794978,603.66479,141.1,141.06,0.80491044]
[1641617795277,603.66479,141.1,141.09,0.80491044]
[1641617795478,603.66479,141.1,141.05,15.0036665]
[1641617795878,603.66479,141.1,141.04,15.0036665]
[1641617796078,603.66479,141.1,141.06,0.80497219]
[1641617796479,603.66479,141.1,141.04,19.0036665]
[1641617796778,603.66479,141.1,141.05,4.0]
[1641617797081,576.0,141.1,141.05,4.80483484]
[1641617797280,576.0,141.1,141.07,15.0036665]
[1641617797479,670.64899,141.12,141.07,15.0036665]
[1641617798181,670.64899,141.12,141.08,0.80483484]
[1641617798782,27.66479,141.09,141.08,0.80483484]
[1641617798983,603.66479,141.09,141.08,0.80483484]
[1641617799884,603.66479,141.09,141.06,0.80483484]
[1641617801586,603.66479,141.09,141.05,0.80483484]
[1641617802384,603.66479,141.09,141.05,15.80850134]
[1641617802985,603.66479,141.09,141.06,0.80483484]
[1641617805685,603.66479,141.09,141.05,0.80483484]
[1641617809189,607.66479,141.09,141.05,0.80483484]
[1641617809389,603.66479,141.09,141.05,0.80483484]
[1641617809693,607.66479,141.09,141.05,0.80483484]
[1641617810090,4.0,141.08,141.05,0.80483484]
[1641617810292,4.0,141.07,141.05,3.484e-05]
[1641617810589,7.465,141.08,141.02,15.0036665]
[1641617810590,78.9864,141.08,141.03,3.484e-05]
[1641617810791,27.66479,141.04,141.03,3.484e-05]
[1641617810991,34.27879,141.04,141.03,3.484e-05]
[1641617812093,34.27879,141.04,141.02,3.484e-05]
[1641617812694,610.27879,141.04,141.02,3.484e-05]
[1641617813595,610.27879,141.04,141.01,3.484e-05]
[1641617817200,610.27879,141.04,141.0,3.484e-05]
[1641617817704,614.27879,141.04,141.0,3.484e-05]
[1641617817903,610.27879,141.04,141.0,3.484e-05]
[1641617818102,610.27879,141.04,141.0,15.00370134]
[1641617818502,610.27879,141.04,141.01,3.484e-05]
[1641617819303,582.614,141.04,141.01,3.484e-05]
[1641617819504,582.614,141.04,141.0,3.484e-05]
[1641617820108,582.614,141.04,141.0,15.00370134]
[1641617820806,27.66479,141.03,141.0,15.00370134]
[1641617821007,27.66479,141.03,141.01,3.484e-05]
[1641617821605,27.66479,141.03,141.0,3.484e-05]
[1641617822508,27.66479,141.03,141.0,15.00370134]
[1641617823209,27.66479,141.03,141.01,3.484e-05]
[1641617825512,603.66479,141.03,141.01,7.43103484]
[1641617826111,603.66479,141.03,141.02,3.484e-05]
[1641617826711,603.66479,141.03,141.02,15.00370134]
[1641617828915,603.66479,141.03,141.02,3.484e-05]
[1641617830923,603.66479,141.03,141.02,15.00370134]
[1641617832522,576.0,141.03,141.02,15.00370134]
[1641617832720,463.4726,141.03,141.02,24.31570134]
[1641617833120,463.4726,141.03,141.02,20.31570134]
[1641617834321,463.4726,141.03,141.02,5.31203484]
[1641617834523,463.4726,141.03,141.02,1.76218622]
[1641617834722,463.4726,141.03,141.02,5.76218622]
[1641617835023,463.4726,141.03,141.02,1.76218622]
[1641617835424,463.0,141.03,141.02,1.76218622]
[1641617836025,463.0,141.03,141.02,3.484e-05]
[1641617837728,527.9997,141.06,141.02,3.484e-05]
[1641617838530,527.9997,141.06,141.03,15.06136195]
[1641617838727,463.0,141.06,141.03,15.06136195]
[1641617838928,490.66479,141.06,141.03,15.06136195]
[1641617839127,490.66479,141.06,141.04,3.484e-05]
[1641617839930,490.66479,141.06,141.03,3.484e-05]
[1641617840131,490.66479,141.06,141.03,15.06139679]
[1641617840930,498.43179,141.06,141.04,3.484e-05]
[1641617841931,470.767,141.06,141.04,3.484e-05]
[1641617842231,463.0,141.06,141.03,3.484e-05]
[1641617842533,463.0,141.06,141.05,5.02276841]
[1641617843030,463.0,141.06,141.05,5.02280325]
[1641617843232,490.66479,141.06,141.05,5.02280325]
[1641617844531,463.0,141.06,141.05,5.02280325]
[1641617845431,490.66479,141.06,141.05,5.02280325]
[1641617846531,490.66479,141.06,141.05,3.484e-05]
[1641617847632,490.66479,141.06,141.05,5.02360648]
[1641617848833,490.66479,141.06,141.05,3.484e-05]
[1641617849234,490.66479,141.06,141.02,15.06139679]
[1641617849833,490.66479,141.06,141.05,5.02418352]
[1641617850234,490.66479,141.06,141.05,5.02421836]
[1641617850435,490.66479,141.06,141.05,3.484e-05]
[1641617851236,490.66479,141.06,141.02,3.484e-05]
[1641617851437,463.0,141.06,141.05,5.02447285]
[1641617851636,463.0,141.06,141.05,11.38647285]
[1641617851835,463.0,141.06,141.05,11.38650769]
[1641617852037,463.0,141.06,141.05,6.36203484]
[1641617852239,463.0,141.06,141.05,23.18554817]
[1641617852538,482.66479,141.08,141.05,23.18554817]
[1641617852741,482.66479,141.08,141.05,16.82354817]
[1641617853144,482.66479,141.08,141.06,3.484e-05]
[1641617854446,5.02471237,141.07,141.06,5.02530442]
[1641617855346,482.66479,141.08,141.06,3.484e-05]
[1641617855947,482.66479,141.08,141.04,15.06136195]
[1641617856348,482.66479,141.08,141.05,3.484e-05]
[1641617856748,455.0,141.08,141.07,5.02562833]
[1641617857149,455.0,141.08,141.07,5.02566317]
[1641617857351,455.0,141.08,141.07,3.484e-05]
[1641617857550,460.02471237,141.1,141.07,3.484e-05]
[1641617858149,464.02471237,141.1,141.07,3.484e-05]
[1641617858350,5.02471237,141.09,141.07,5.02270572]
[1641617858550,16.71371237,141.09,141.07,5.02270572]
[1641617858750,16.71371237,141.09,141.08,3.484e-05]
[1641617859353,14.94911047,141.09,141.08,3.484e-05]
[1641617859553,454.99996516,141.08,141.05,5.02270572]
[1641617859951,454.99996516,141.08,141.06,0.80513009]
[1641617860353,460.02307931,141.08,141.06,0.80513009]
[1641617861357,5.02311415,141.07,141.06,0.80513009]
[1641617861553,460.02311415,141.07,141.06,0.80513009]
[1641617864259,458.26037759,141.07,141.06,0.80513009]
[1641617865057,458.26037759,141.07,141.05,0.80513009]
[1641617865259,460.02327651,141.07,141.05,5.82783581]
[1641617866157,460.02327651,141.07,141.06,0.80513009]
[1641617866557,464.02327651,141.07,141.05,5.02270572]
[1641617866759,460.02327651,141.07,141.04,5.02347501]
[1641617867261,460.02327651,141.07,141.05,5.02347501]
[1641617867863,460.02327651,141.07,141.06,0.80515008]
[1641617870068,460.02327651,141.07,141.06,0.00515008]
[1641617871271,464.02327651,141.07,141.06,0.00515008]
[1641617871872,464.02327651,141.07,141.05,0.00515008]
[1641617872071,470.01627651,141.07,141.05,0.00515008]
[1641617872272,470.01627651,141.07,141.05,5.02862509]
[1641617872472,27.66479,141.06,141.05,5.02862509]
[1641617872671,27.66479,141.06,141.05,5.02347501]
[1641617874376,482.66479,141.06,141.05,5.02347501]
[1641617874874,455.0,141.06,141.05,5.02347501]
[1641617876879,455.0,141.06,141.03,1.76304739]
[1641617877278,357.9779,141.06,141.05,4.0]
[1641617877482,358.0,141.06,141.05,10.634]
[1641617877779,110.72556105,141.06,141.05,10.634]
[1641617877980,110.72556105,141.06,141.05,25.69536195]
[1641617878180,111.0,141.06,141.05,25.69536195]
[1641617878580,116.02327651,141.1,141.05,25.69536195]
[1641617878781,116.02327651,141.1,141.08,4.0]
[1641617879181,111.0,141.1,141.08,4.0]
[1641617879582,111.0,141.1,141.06,31.66479]
[1641617880182,111.0,141.1,141.09,6.77785648]
[1641617881082,111.0,141.1,141.09,5.01480909]
[1641617882485,116.02327651,141.13,141.09,5.01480909]
[1641617883987,111.0,141.13,141.09,6.77785648]
[1641617886591,111.0,141.13,141.09,5.01480909]
[1641617886790,111.0,141.13,141.08,5.01480909]
[1641617886990,111.0,141.13,141.11,4.0]
[1641617887492,5.02327651,141.14,141.11,4.0]
[1641617887493,111.0,141.14,141.11,4.0]
[1641617887691,111.0,141.14,141.1,5.01480909]
[1641617887890,111.0,141.14,141.12,0.80471417]
[1641617888391,111.0,141.14,141.11,5.81952326]
[1641617888792,111.0,141.14,141.12,0.80471417]
[1641617888992,138.66479,141.16,141.12,0.80471417]
[1641617889893,4.0,141.15,141.12,0.80471417]
[1641617890092,138.66479,141.16,141.12,0.80471417]
[1641617890292,138.66479,141.16,141.05,31.66479]
[1641617890293,5.02327651,141.15,141.11,0.80471417]
[1641617890594,110.19528583,141.11,141.08,5.01480909]
[1641617890892,110.19528583,141.11,141.09,0.80485314]
[1641617891492,110.0,141.11,141.09,0.80485314]
[1641617892594,115.02327651,141.15,141.09,0.80485314]
[1641617892794,65.7445,141.14,141.09,0.80485314]
[1641617895198,93.40929,141.14,141.09,0.80485314]
[1641617895600,203.40929,141.14,141.09,0.80485314]
[1641617897097,137.66479,141.14,141.11,4.0]
[1641617897300,110.0,141.14,141.11,9.975]
[1641617897501,115.02327651,141.15,141.11,5.975]
[1641617897899,115.02327651,141.15,141.12,0.80485314]
[1641617898098,110.0,141.15,141.12,0.80485314]
[1641617898900,110.0,141.15,141.11,0.80485314]
[1641617899300,137.66479,141.15,141.11,0.80485314]
[1641617899704,142.68806651,141.15,141.11,0.80485314]
[1641617900305,142.68806651,141.15,141.1,0.80485314]
[1641617902404,142.68806651,141.15,141.1,5.81966223]
[1641617903105,142.68806651,141.15,141.11,0.80485314]
[1641617903708,5.02327651,141.14,141.11,0.80485314]
[1641617904606,181.82427651,141.14,141.11,0.80485314]
[1641617905710,181.82427651,141.14,141.11,5.81966223]
[1641617906108,181.82427651,141.14,141.12,0.80485314]
[1641617906508,5.02327651,141.13,141.12,0.80485314]
[1641617907313,9.02327651,141.13,141.12,0.80485314]
[1641617907515,110.0,141.11,141.08,15.04442727]
[1641617907715,27.66479,141.09,141.08,15.04442727]
[1641617908014,33.52879,141.09,141.05,47.95709924]
[1641617908814,33.52879,141.09,141.04,31.66479]
[1641617909014,27.66479,141.09,141.04,27.66479]
[1641617909414,110.0,141.11,141.04,31.66479]
[1641617909615,110.0,141.11,141.05,4.0]
[1641617909814,110.0,141.11,141.05,5.76259282]
[1641617910716,110.0,141.11,141.06,4.0]
[1641617911014,110.0,141.11,141.06,1.76259282]
[1641617911617,137.66479,141.11,141.06,1.76259282]
[1641617911818,137.66479,141.11,141.05,1.76259282]
[1641617912018,68.3942,141.1,141.05,1.76259282]
[1641617912420,178.3942,141.1,141.05,1.76259282]
[1641617912820,170.34513226,141.1,141.05,1.76259282]
[1641617915426,110.0,141.06,141.05,1.76259282]
[1641617915628,110.0,141.06,141.05,5.76259282]
[1641617916029,110.0,141.06,141.05,1.76259282]
[1641617916631,110.0,141.06,141.05,5.76259282]
[1641617917532,110.0,141.06,141.05,13.79654166]
[1641617917930,110.0,141.06,141.05,9.79654166]
[1641617919331,110.0,141.06,141.05,13.79654166]
[1641617919536,137.66479,141.11,141.05,13.79654166]
[1641617919733,137.66479,141.11,141.05,9.79654166]
[1641617920633,69.736,141.1,141.06,1.76259282]
[1641617921233,73.736,141.1,141.06,1.76259282]
[1641617921435,4.0,141.09,141.05,9.79654166]
[1641617921638,110.0,141.06,141.05,9.79654166]
[1641617921835,137.66479,141.06,141.05,9.79654166]
[1641617922338,137.66479,141.06,141.05,8.03394884]
[1641617922538,137.66479,141.06,141.01,9.79654166]
[1641617923739,137.66479,141.06,141.0,1.76259282]
[1641617924142,64.7917,141.05,141.0,1.76259282]
[1641617924542,70.0077,141.05,141.0,1.76259282]
[1641617925943,70.0077,141.05,141.0,5.76259282]
[1641617926143,5.216,141.05,141.02,4.0]
[1641617926343,5.216,141.05,141.0,1.76259282]
[1641617926543,5.216,141.05,141.0,5.76259282]
[1641617927145,5.216,141.05,141.01,1.76259282]
[1641617928546,5.216,141.05,141.03,4.0]
[1641617928944,5.216,141.05,141.02,4.0]
[1641617929145,5.216,141.05,141.01,1.76259282]
[1641617929443,5.216,141.05,141.02,4.0]
[1641617929644,5.216,141.05,141.03,1.76259282]
[1641617930546,5.216,141.05,141.03,5.76259282]
[1641617931044,5.216,141.05,141.03,1.76259282]
[1641617931650,5.216,141.05,141.0,4.0]
[1641617931651,5.216,141.05,141.04,1.76259282]
[1641617932148,5.216,141.05,141.01,1.76259282]
[1641617932548,110.0,141.03,141.01,1.76259282]
[1641617934552,110.0,141.03,141.01,5.76259282]
[1641617935053,110.0,141.03,141.01,1.76259282]
[1641617938860,110.0,141.03,141.02,15.04454951]
[1641617939557,110.0,141.03,141.01,16.80714233]
[1641617940557,93.19285767,141.01,141.0,8.03394884]
[1641617940857,120.85764767,141.01,141.0,8.03394884]
[1641617941357,120.85764767,141.01,140.98,4.0]
[1641617943461,89.0,140.98,140.95,7.08516367]
[1641617943660,93.746,140.98,140.95,7.08516367]
[1641617946162,89.0,140.98,140.95,7.08516367]
[1641617948368,89.0,140.98,140.96,39.9348812]
[1641617948771,73.95557273,140.98,140.96,39.9348812]
[1641617948971,73.95557273,140.98,140.97,27.66479]
[1641617949171,74.0,140.98,140.97,27.66479]
[1641617950977,74.0,140.98,140.96,47.96883004]
[1641617951575,74.0,140.98,140.97,27.66479]
[1641617952076,74.0,140.98,140.96,39.9348812]
[1641617952675,34.0651188,140.96,140.95,7.08516367]
[1641617953676,34.0651188,140.96,140.95,62.41474367]
[1641617954878,34.0651188,140.96,140.95,70.44869251]
[1641617955078,34.0651188,140.96,140.95,83.23398364]
[1641617957181,39.8901188,140.96,140.95,83.23398364]
[1641617958282,39.8901188,140.96,140.95,87.2600615]
[1641617958482,39.825,140.96,140.95,31.9304815]
[1641617958882,39.825,140.96,140.95,27.90440364]
[1641617959183,39.825,140.96,140.95,20.81923997]
[1641617959685,39.825,140.96,140.93,8.03394884]
[1641617960785,39.825,140.96,140.92,34.75171109]
[1641617961684,5.825,140.96,140.92,8.78565993]
[1641617965090,5.825,140.96,140.91,12.77513518]
[1641617966190,5.825,140.96,140.9,16.80121304]
[1641617966390,5.825,140.96,140.91,27.66479]
[1641617967192,5.825,140.96,140.9,16.80121304]
[1641617968594,5.825,140.96,140.91,27.66479]
[1641617969293,9.825,140.96,140.91,27.66479]
[1641617972398,4.0,140.96,140.91,27.66479]
[1641617972900,4.0,140.96,140.92,40.12591052]
[1641617973098,93.09016679,140.98,140.95,4.0]
[1641617973301,93.09016679,140.98,140.93,4.0]
[1641617974002,93.09016679,140.98,140.92,44.12591052]
[1641617974203,93.09016679,140.98,140.97,5.01582496]
[1641617974403,27.66479,140.98,140.97,5.01582496]
[1641617974603,27.66479,140.98,140.96,4.0]
[1641617975205,27.66479,140.98,140.95,15.04747489]
[1641617976207,27.66479,140.98,140.97,4.0]
[1641617976606,71.1114,141.04,140.97,4.0]
[1641617976807,27.66479,141.03,141.0,4.0]
[1641617977007,27.66479,141.03,140.99,4.0]
[1641617977808,27.66479,141.03,140.99,19.03726341]
[1641617978607,27.66479,141.03,141.0,4.0]
[1641617979208,27.66479,141.03,140.99,19.03726341]
[1641617979407,27.66479,141.03,140.99,15.03726341]
[1641617979608,27.66479,141.03,140.99,19.03726341]
[1641617980611,27.66479,141.03,141.0,1.75186066]
[1641617981614,27.66479,141.03,141.0,16.78912407]
[1641617982210,27.66479,141.03,141.0,1.75186066]
[1641617983010,70.8467,141.06,141.0,1.75186066]
[1641617983212,70.8467,141.06,140.99,20.78912407]
[1641617983510,27.66479,141.03,140.99,20.78912407]
[1641617983812,27.66479,141.03,141.0,1.75186066]
[1641617988017,70.8467,141.06,141.0,1.75186066]
[1641617989618,27.66479,141.03,141.0,1.75186066]
[1641617990320,27.66479,141.03,140.99,15.03726341]
[1641617991521,27.66479,141.03,140.99,6.341e-05]
[1641617992019,27.66479,141.03,140.97,9.76292901]
[1641617992219,27.66479,141.03,140.97,1.75186066]
[1641617994824,69.8775,141.02,140.97,1.75186066]
[1641617996126,69.8775,141.02,140.97,5.75186066]
[1641617996526,69.8775,141.02,140.98,4.0]
[1641617996925,69.8775,141.02,140.99,1.75186066]
[1641617998034,69.8775,141.02,140.97,1.75186066]
[1641617998231,69.8775,141.02,140.97,5.75186066]
[1641617998431,69.8775,141.02,140.98,4.0]
[1641617998732,69.8775,141.02,140.98,5.75186066]
[1641617999634,69.8775,141.02,140.99,1.75186066]
[1641618000934,27.66479,141.03,140.99,1.75186066]
[1641618001534,27.66479,141.03,140.99,5.75186066]
[1641618002135,27.66479,141.03,141.0,1.75186066]
[1641618003739,27.66479,141.03,140.99,1.75186066]
[1641618004340,31.66479,141.03,140.97,49.88883953]
[1641618004543,31.66479,141.03,140.97,1.75186066]
[1641618004739,27.66479,141.03,140.97,1.75186066]
[1641618004940,31.66479,141.03,140.97,1.75186066]
[1641618005340,4.0,141.0,140.97,1.75186066]
[1641618005541,4.0,141.0,140.95,12.77080369]
[1641618005542,10.561,141.0,140.94,49.88883953]
[1641618005940,38.22579,141.0,140.94,49.88883953]
[1641618006344,4.0,140.99,140.94,49.88883953]
[1641618006642,34.22579,141.0,140.93,41.87777118]
[1641618006843,4.0,140.99,140.93,41.87777118]
[1641618007044,65.5916,140.99,140.93,45.87777118]
[1641618007342,65.5916,140.99,140.93,41.87777118]
[1641618007842,65.5916,140.99,140.94,1.75186066]
[1641618008442,69.5916,140.99,140.94,1.75186066]
[1641618008643,65.5916,140.99,140.94,1.75186066]
[1641618008842,65.5916,140.99,140.93,1.75186066]
[1641618009042,65.5916,140.99,140.95,4.0]
[1641618009245,34.22579,141.0,140.95,4.0]
[1641618009543,34.22579,141.0,140.94,4.0]
[1641618009746,34.22579,141.0,140.96,1.75186066]
[1641618009945,27.66479,140.97,140.96,1.75186066]
[1641618010146,34.59879,140.97,140.96,1.75186066]
[1641618010346,34.59879,140.97,140.92,40.12591052]
[1641618010846,34.59879,140.97,140.91,12.03867576]
[1641618011048,38.59879,140.97,140.91,8.01106835]
[1641618011247,34.59879,140.97,140.91,8.01106835]
[1641618012446,4.0,140.95,140.91,8.01106835]
[1641618013246,71.3091,140.96,140.91,8.01106835]
[1641618014047,27.66479,140.93,140.87,8.01106835]
[1641618015247,31.66479,140.93,140.85,40.12591052]
[1641618016249,71.142,140.92,140.84,12.01106835]
[1641618017352,71.142,140.92,140.84,8.01106835]
[1641618018251,27.66479,140.88,140.84,8.01106835]
[1641618018450,33.62579,140.88,140.84,8.01106835]
[1641618020853,33.62579,140.88,140.83,7.09094132]
[1641618021253,5.961,140.88,140.83,7.09094132]
[1641618021452,71.142,140.92,140.85,4.0]
[1641618021654,71.142,140.92,140.83,11.09094132]
[1641618021853,71.142,140.92,140.85,14.98685206]
[1641618022255,27.66479,140.91,140.85,14.98685206]
[1641618023555,27.66479,140.91,140.84,14.98685206]
[1641618025457,27.66479,140.91,140.85,4.0]
[1641618025858,27.66479,140.91,140.84,14.98685206]